bitfinex/quotes_SOLUSD_20241113
["timestamp","ask_amount","ask_price","bid_price","bid_amount"]
[1731487017059,22.47040988,206.79,206.71,0.12549]
[1731487018355,4.836,206.78,206.71,0.12549]
[1731487018529,4.836,206.78,206.7,22.47040988]
[1731487018727,22.47040988,206.77,206.7,22.47040988]
[1731487019154,4.836,206.78,206.7,22.47040988]
[1731487019641,4.8357,206.8,206.74,22.47040988]
[1731487019839,4.8348,206.84,206.78,22.47040988]
[1731487020040,5.67414314,206.86,206.8,22.47040988]
[1731487020242,22.95879928,206.87,206.84,22.47040988]
[1731487020243,0.4883894,206.87,206.84,22.47040988]
[1731487020550,0.4883894,206.87,206.86,22.47040988]
[1731487020848,5.3223894,206.87,206.82,22.47040988]
[1731487021057,5.3223894,206.87,206.8,22.47040988]
[1731487021944,22.47040988,206.85,206.76,22.47040988]
[1731487022342,4.8346,206.84,206.76,22.47040988]
[1731487022542,22.47040988,206.83,206.75,15.3388]
[1731487022935,22.47040988,206.83,206.74,26.82360988]
[1731487022936,22.47040988,206.83,206.74,22.47040988]
[1731487023656,22.47040988,206.79,206.71,6.5386]
[1731487023959,19.29558922,206.84,206.7,15.71]
[1731487024142,22.47040988,206.79,206.7,38.18040988]
[1731487024337,4.836,206.78,206.7,38.18040988]
[1731487024854,22.47040988,206.77,206.68,22.47040988]
[1731487027472,22.47040988,206.67,206.6,15.8358]
[1731487027755,22.47040988,206.67,206.59,22.47040988]
[1731487027756,4.8388,206.66,206.59,22.47040988]
[1731487029160,4.8388,206.66,206.57,15.2488]
[1731487029161,22.47040988,206.65,206.57,33.36240988]
[1731487029658,22.47040988,206.65,206.58,312.0]
[1731487029865,4.8393,206.64,206.58,312.0]
[1731487030252,22.47040988,206.61,206.58,312.0]
[1731487030450,22.47040988,206.63,206.54,22.47040988]
[1731487030652,4.8393,206.64,206.56,22.47040988]
[1731487030956,22.47040988,206.69,206.6,22.47040988]
[1731487031764,4.8398,206.62,206.54,22.47040988]
[1731487032848,4.8398,206.62,206.53,0.12549]
[1731487033164,22.47040988,206.61,206.53,22.47040988]
[1731487033359,22.47040988,206.61,206.56,312.0]
[1731487034449,4.8402,206.6,206.56,312.0]
[1731487034746,4.8402,206.6,206.5,15.9437]
[1731487034747,22.47040988,206.57,206.5,15.9437]
[1731487035063,22.47040988,206.53,206.45,37.90650988]
[1731487036347,4.8421,206.52,206.45,37.90650988]
[1731487036647,4.8413,206.56,206.49,22.47040988]
[1731487037462,22.47040988,206.54,206.45,37.90650988]
[1731487037667,22.47040988,206.52,206.43,338.83020988]
[1731487037852,22.47040988,206.52,206.44,0.12549]
[1731487038161,22.47040988,206.5,206.43,312.0]
[1731487038371,27.31320988,206.5,206.43,338.83010988]
[1731487038550,4.8422,206.52,206.45,22.47040988]
[1731487038947,22.47040988,206.56,206.48,0.12549]
[1731487039763,22.47040988,206.58,206.49,22.47040988]
[1731487040172,22.47040988,206.62,206.53,22.47040988]
[1731487040463,22.47040988,206.66,206.59,22.47040988]
[1731487040659,4.8387,206.67,206.59,22.47040988]
[1731487040851,4.8387,206.67,206.61,22.47040988]
[1731487041053,4.8387,206.67,206.59,22.47040988]
[1731487041262,4.8387,206.67,206.53,43.902374]
[1731487041465,22.47040988,206.63,206.56,22.47040988]
[1731487041661,4.8387,206.67,206.6,22.47040988]
[1731487042170,27.30910988,206.67,206.6,22.47040988]
[1731487042351,27.30910988,206.67,206.55,10.8927]
[1731487042352,22.47040988,206.65,206.56,22.47040988]
[1731487043072,22.47040988,206.63,206.54,22.47040988]
[1731487043372,22.47040988,206.61,206.54,22.47040988]
[1731487043671,22.47040988,206.63,206.56,22.47040988]
[1731487043972,27.30910988,206.67,206.59,0.12549]
[1731487044174,4.8387,206.67,206.62,22.47040988]
[1731487044471,4.8387,206.67,206.66,312.0]
[1731487044868,4.8382,206.69,206.66,312.0]
[1731487045048,4.8382,206.69,206.64,22.47040988]
[1731487045451,4.8382,206.69,206.62,22.47040988]
[1731487045673,4.8382,206.69,206.6,38.73260988]
[1731487045849,27.30860988,206.69,206.6,38.73260988]
[1731487046270,22.47040988,206.67,206.59,10.891]
[1731487046773,22.47040988,206.67,206.58,22.47040988]
[1731487047472,27.30860988,206.69,206.6,22.47040988]
[1731487048074,4.8382,206.69,206.68,312.0]
[1731487050157,27.30860988,206.69,206.68,312.0]
[1731487050677,4.8382,206.69,206.68,312.0]
[1731487050871,27.30820988,206.71,206.68,312.0]
[1731487051072,27.30820988,206.71,206.64,22.47040988]
[1731487051266,22.47040988,206.73,206.67,0.12549]
[1731487051466,22.47040988,206.75,206.68,22.47040988]
[1731487051666,22.47040988,206.75,206.67,0.12549]
[1731487052070,27.30730988,206.75,206.67,0.12549]
[1731487053265,22.47040988,206.77,206.68,22.47040988]
[1731487053464,22.47040988,206.79,206.72,22.47040988]
[1731487053872,22.47040988,206.81,206.73,0.12549]
[1731487054187,4.8347,206.84,206.8,312.0]
[1731487054364,0.4883894,206.87,206.83,0.12549]
[1731487054559,0.4883894,206.87,206.78,16.6417]
[1731487054765,27.30450988,206.86,206.78,39.11210988]
[1731487055063,27.30450988,206.86,206.79,0.12549]
[1731487055273,22.47040988,206.84,206.76,28.76680988]
[1731487055474,4.8348,206.83,206.76,22.47040988]
[1731487055666,4.8348,206.83,206.75,0.12549]
[1731487055868,22.47040988,206.82,206.74,22.47040988]
[1731487056069,22.47040988,206.82,206.72,45.28300988]
[1731487056557,22.47040988,206.78,206.68,22.47040988]
[1731487056762,22.47040988,206.76,206.68,22.47040988]
[1731487057270,22.47040988,206.78,206.7,22.47040988]
[1731487057461,27.30650988,206.78,206.75,312.0]
[1731487057861,22.47040988,206.82,206.75,312.0]
[1731487058061,22.47040988,206.86,206.78,22.47040988]
[1731487058276,27.30460988,206.86,206.78,22.47040988]
[1731487058479,22.47040988,206.84,206.76,22.59589988]
[1731487058980,22.47040988,206.82,206.72,22.47040988]
[1731487059480,22.47040988,206.8,206.73,0.12549]
[1731487060668,22.47040988,206.8,206.73,4.47899]
[1731487060873,4.8349,206.83,206.75,0.12549]
[1731487061172,4.8344,206.85,206.82,312.0]
[1731487061484,22.47040988,206.84,206.82,312.0]
[1731487061881,22.47040988,206.84,206.74,22.47040988]
[1731487062085,4.8344,206.85,206.74,22.47040988]
[1731487062086,22.47040988,206.82,206.74,22.47040988]
[1731487062578,22.47040988,206.8,206.7,22.47040988]
[1731487062766,22.47040988,206.78,206.7,22.47040988]
[1731487062963,22.47040988,206.78,206.68,37.71080988]
[1731487063379,22.47040988,206.76,206.68,37.71080988]
[1731487063578,4.8367,206.75,206.68,33.35630988]
[1731487063766,4.8367,206.75,206.68,37.71080988]
[1731487064077,4.8364,206.77,206.69,0.12549]
[1731487064285,4.8364,206.77,206.71,0.12549]
[1731487064593,27.30640988,206.78,206.71,0.12549]
[1731487065091,4.836,206.78,206.76,312.0]
[1731487065267,22.47040988,206.76,206.67,15.3446]
[1731487065465,22.47040988,206.76,206.67,19.6992]
[1731487065669,4.8367,206.75,206.67,19.6992]
[1731487065870,4.8367,206.75,206.68,0.12549]
[1731487066175,4.8367,206.75,206.68,22.59589988]
[1731487066377,4.8367,206.75,206.68,0.12549]
[1731487068183,4.8367,206.75,206.74,312.0]
[1731487069288,4.8362,206.77,206.7,0.12549]
[1731487069475,22.47040988,206.76,206.69,0.12549]
[1731487069679,22.47040988,206.76,206.68,10.8863]
[1731487069868,22.47040988,206.72,206.64,33.35880988]
[1731487070184,22.47040988,206.74,206.64,37.71420988]
[1731487070367,22.47040988,206.76,206.69,0.12549]
[1731487071185,4.8362,206.77,206.69,0.12549]
[1731487071381,22.47040988,206.78,206.69,4.47969]
[1731487071569,27.30650988,206.78,206.69,4.47969]
[1731487071971,22.47040988,206.83,206.74,22.47040988]
[1731487072267,22.47040988,206.85,206.82,312.0]
[1731487073170,22.47040988,206.83,206.82,312.0]
[1731487073687,27.30520988,206.83,206.82,312.0]
[1731487074189,20.17728013,206.91,206.82,312.0]
[1731487074368,168.7517,206.97,206.86,0.12549]
[1731487074369,2.20615616,206.96,206.86,0.12549]
[1731487074575,22.47040988,206.94,206.86,0.12549]
[1731487074873,22.47040988,206.94,206.85,22.47040988]
[1731487074874,4.8328,206.92,206.85,22.47040988]
[1731487075262,4.8328,206.92,206.86,0.12549]
[1731487075477,27.30320988,206.92,206.86,0.12549]
[1731487075875,22.47040988,206.9,206.82,10.879]
[1731487076081,5.3223894,206.87,206.81,22.47040988]
[1731487076280,5.3223894,206.87,206.82,0.12549]
[1731487076690,5.3223894,206.87,206.79,22.47040988]
[1731487076691,27.79279928,206.87,206.79,22.47040988]
[1731487076895,22.95879928,206.87,206.79,26.82250988]
[1731487077070,0.4883894,206.87,206.8,0.12549]
[1731487077271,0.4883894,206.87,206.82,312.0]
[1731487078269,0.83963965,206.91,206.86,6.20149]
[1731487078488,0.1,207.09,206.91,0.12549]
[1731487078489,4.8297,207.05,206.91,0.12549]
[1731487078670,4.8297,207.05,206.96,22.47040988]
[1731487078990,22.47040988,207.03,206.94,22.47040988]
[1731487079375,22.47040988,207.03,206.92,22.47040988]
[1731487079572,22.47040988,207.01,206.92,22.47040988]
[1731487080389,4.8309,207.0,206.93,0.12549]
[1731487080578,4.8309,207.0,206.92,22.47040988]
[1731487081397,4.8309,207.0,206.93,312.0]
[1731487082390,22.47040988,206.99,206.93,312.0]
[1731487082683,22.47040988,206.99,206.9,22.47040988]
[1731487083767,4.8313,206.98,206.9,22.47040988]
[1731487083985,4.8313,206.98,206.9,26.82020988]
[1731487084388,22.47040988,206.97,206.88,22.47040988]
[1731487084691,22.47040988,206.97,206.89,0.12549]
[1731487084888,4.8313,206.98,206.91,0.12549]
[1731487085575,4.8313,206.98,206.91,312.12549]
[1731487086795,27.30160988,206.99,206.91,316.47499]
[1731487086984,27.30160988,206.99,206.92,22.47040988]
[1731487087692,4.8299,207.04,206.94,22.47040988]
[1731487087899,4.8306,207.01,206.94,22.47040988]
[1731487088673,22.47040988,207.02,206.94,22.47040988]
[1731487088674,27.30090988,207.02,206.94,22.47040988]
[1731487089985,4.8305,207.02,206.92,22.59589988]
[1731487090186,22.47040988,206.99,206.92,0.12549]
[1731487090495,22.47040988,206.99,206.89,6.97627348]
[1731487090496,22.47040988,206.97,206.89,4.35]
[1731487090788,22.47040988,206.97,206.9,0.12549]
[1731487091401,27.30210988,206.97,206.9,0.12549]
[1731487092101,27.30210988,206.97,206.89,4.35]
[1731487092311,27.30210988,206.97,206.88,22.47040988]
[1731487092603,22.47040988,206.95,206.88,22.47040988]
[1731487092785,22.47040988,206.93,206.86,33.34690988]
[1731487092988,22.47040988,206.93,206.87,0.12549]
[1731487093200,22.47040988,206.95,206.87,0.12549]
[1731487093793,4.8323,206.94,206.87,4.47599]
[1731487094898,4.8318,206.96,206.88,22.47040988]
[1731487095115,22.47040988,206.95,206.88,312.0]
[1731487095289,22.47040988,206.93,206.84,22.47040988]
[1731487095486,22.47040988,206.91,206.82,33.34940988]
[1731487096015,22.47040988,206.91,206.84,22.47040988]
[1731487096607,27.30350988,206.91,206.84,22.47040988]
[1731487097406,27.30350988,206.91,206.83,4.47669]
[1731487097407,27.30350988,206.91,206.83,0.12549]
[1731487097606,27.30350988,206.91,206.83,4.47679]
[1731487097799,27.30350988,206.91,206.83,0.12549]
[1731487098199,27.30350988,206.91,206.83,4.47679]
[1731487098496,27.30350988,206.91,206.84,312.0]
[1731487098716,4.8331,206.91,206.84,338.82150988]
[1731487099003,22.47040988,206.89,206.84,312.0]
[1731487099204,22.47040988,206.87,206.81,15.6774]
[1731487099405,22.47040988,206.87,206.78,33.35140988]
[1731487099406,22.47040988,206.87,206.79,0.12549]
[1731487100403,27.30450988,206.87,206.79,4.47769]
[1731487100800,4.8341,206.87,206.79,18.48593898]
[1731487102111,4.8341,206.87,206.85,312.0]
[1731487102811,22.41629245,206.87,206.79,4.47769]
[1731487103317,22.41629245,206.91,206.83,22.41629245]
[1731487104400,22.41629245,206.87,206.79,37.64909245]
[1731487104711,22.41629245,206.87,206.79,10.8806]
[1731487104910,4.8341,206.86,206.79,10.8806]
[1731487105707,4.8341,206.86,206.85,312.0]
[1731487106199,4.833,206.91,206.85,312.0]
[1731487106388,22.41629245,206.89,206.81,22.41629245]
[1731487106593,22.41629245,206.89,206.8,0.12549]
[1731487107314,27.24929245,206.91,206.83,22.41629245]
[1731487107906,27.24899245,206.93,206.85,22.41629245]
[1731487108107,4.8327,206.93,206.87,22.41629245]
[1731487108615,4.8322,206.95,206.89,22.41629245]
[1731487108793,22.41629245,206.93,206.85,29.39256593]
[1731487108997,22.41629245,206.91,206.84,0.12549]
[1731487109405,22.41629245,206.91,206.9,312.0]
[1731487110495,27.24929245,206.91,206.9,312.0]
[1731487112293,27.24929245,206.91,206.81,22.41629245]
[1731487112618,27.24929245,206.91,206.79,10.8804]
[1731487112619,22.41629245,206.86,206.79,37.64889245]
[1731487113999,22.41629245,206.86,206.79,33.29669245]
[1731487114209,22.41629245,206.86,206.8,0.12549]
[1731487114509,27.25059245,206.86,206.8,0.12549]
[1731487114719,22.41629245,206.84,206.77,26.76879245]
[1731487114903,22.41629245,206.84,206.78,0.12549]
[1731487115409,22.41629245,206.82,206.76,15.233]
[1731487115812,22.41629245,206.8,206.71,17.2492]
[1731487116024,22.41629245,206.83,206.77,22.41629245]
[1731487116318,22.41629245,206.85,206.77,22.41629245]
[1731487116515,4.8346,206.84,206.77,22.41629245]
[1731487117412,22.41629245,206.85,206.79,22.41629245]
[1731487117413,4.8344,206.85,206.79,22.41629245]
[1731487117609,4.8344,206.85,206.8,0.12549]
[1731487117817,22.41629245,206.87,206.8,0.12549]
[1731487117818,27.25039245,206.87,206.8,0.12549]
[1731487118409,22.41629245,206.81,206.8,312.0]
[1731487118724,22.41629245,206.81,206.74,0.12549]
[1731487118895,27.25159245,206.81,206.73,33.29989245]
[1731487119327,27.25159245,206.81,206.74,0.12549]
[1731487119614,27.25159245,206.81,206.73,37.65339245]
[1731487119822,22.41629245,206.79,206.73,10.8836]
[1731487120204,22.41629245,206.79,206.71,22.41629245]
[1731487120406,22.41629245,206.77,206.7,0.12549]
[1731487120615,22.41629245,206.77,206.69,37.65619245]
[1731487120930,27.25269245,206.77,206.69,37.65619245]
[1731487121132,27.25269245,206.77,206.69,33.30189245]
[1731487121620,27.25269245,206.77,206.69,345.30189245]
[1731487121815,22.41629245,206.75,206.69,312.0]
[1731487122010,22.41629245,206.71,206.65,15.8533]
[1731487122212,22.41629245,206.71,206.62,6.2605]
[1731487122422,22.41629245,206.71,206.63,22.41629245]
[1731487122929,16.9271,206.77,206.62,6.2605]
[1731487122930,14.03192528,206.72,206.65,0.12549]
[1731487123426,4.8361,206.78,206.71,0.12549]
[1731487123639,4.8361,206.78,206.73,0.12549]
[1731487125009,4.8361,206.78,206.73,312.12549]
[1731487127212,4.8361,206.78,206.73,0.12549]
[1731487128813,4.8357,206.8,206.73,0.12549]
[1731487129017,4.8357,206.8,206.75,0.12549]
[1731487130216,4.8357,206.8,206.75,312.12549]
[1731487130829,14.03192528,206.76,206.61,10.8897]
[1731487131032,14.03192528,206.73,206.64,14.03192528]
[1731487131936,4.8374,206.72,206.65,0.12549]
[1731487133822,14.03192528,206.71,206.61,15.2457]
[1731487134229,14.03192528,206.69,206.62,0.12549]
[1731487134931,4.8383,206.68,206.62,0.12549]
[1731487135134,4.8383,206.68,206.61,10.8897]
[1731487135317,14.03192528,206.67,206.6,30.32342528]
[1731487135643,14.03192528,206.67,206.61,0.12549]
[1731487136135,4.8383,206.68,206.61,0.12549]
[1731487136533,14.03192528,206.67,206.58,14.03192528]
[1731487136720,4.8383,206.68,206.6,14.03192528]
[1731487136920,4.8383,206.68,206.61,0.12549]
[1731487137536,14.03192528,206.67,206.6,312.0]
[1731487137743,14.03192528,206.67,206.58,29.28012528]
[1731487137917,14.03192528,206.67,206.6,14.03192528]
[1731487138229,14.03192528,206.67,206.61,0.12549]
[1731487139035,4.8388,206.66,206.58,29.28012528]
[1731487139233,4.8388,206.66,206.51,21.99]
[1731487139234,14.03192528,206.65,206.56,14.03192528]
[1731487139952,14.03192528,206.65,206.57,0.12549]
[1731487140123,14.03192528,206.69,206.61,0.12549]
[1731487140443,18.86962528,206.71,206.63,0.12549]
[1731487140736,18.86962528,206.71,206.63,312.12549]
[1731487141240,14.03192528,206.69,206.63,316.48099]
[1731487141542,14.03192528,206.69,206.63,312.12549]
[1731487142238,14.03192528,206.69,206.63,0.12549]
[1731487142539,14.03192528,206.69,206.61,0.12549]
[1731487143433,4.8383,206.68,206.61,4.48139]
[1731487144132,14.03192528,206.71,206.63,0.12549]
[1731487144334,20.3679,206.72,206.65,0.12549]
[1731487145340,20.3679,206.72,206.65,316.48059]
[1731487145543,15.5304,206.72,206.65,327.36849]
[1731487145742,14.03192528,206.74,206.65,15.36849]
[1731487146241,14.03192528,206.76,206.69,0.12549]
[1731487146448,4.8363,206.77,206.71,0.12549]
[1731487146947,4.8363,206.77,206.69,0.12549]
[1731487147443,4.8363,206.77,206.69,4.47979]
[1731487148148,14.03192528,206.76,206.69,4.47979]
[1731487148446,18.86852528,206.76,206.69,4.47979]
[1731487148652,4.8366,206.76,206.69,4.47979]
[1731487148945,4.8366,206.76,206.69,316.47979]
[1731487149630,18.86852528,206.76,206.69,316.47979]
[1731487151040,29.32392528,206.78,206.69,316.47979]
[1731487151234,18.86802528,206.78,206.71,0.12549]
[1731487152142,18.86802528,206.78,206.69,10.8858]
[1731487152336,14.03192528,206.76,206.69,10.8858]
[1731487152547,14.03192528,206.76,206.7,0.12549]
[1731487152935,14.03192528,206.72,206.58,22.6071]
[1731487153134,14.03192528,206.62,206.53,6.3577]
[1731487153444,14.03192528,206.62,206.53,36.63902528]
[1731487153833,14.03192528,206.62,206.54,0.12549]
[1731487154254,18.87172528,206.62,206.54,15.37669]
[1731487154861,18.87172528,206.62,206.54,327.2512]
[1731487155532,18.87172528,206.62,206.55,4.48259]
[1731487156539,14.03192528,206.62,206.55,4.48259]
[1731487157259,14.03192528,206.62,206.54,312.0]
[1731487157260,14.03192528,206.58,206.54,312.0]
[1731487158250,14.03192528,206.58,206.5,10.8958]
[1731487158456,14.03192528,206.58,206.5,15.2541]
[1731487158959,4.8405,206.59,206.51,14.15741528]
[1731487159268,16.1163,206.66,206.54,0.12549]
[1731487159447,4.839,206.65,206.56,0.12549]
[1731487159768,14.03192528,206.62,206.56,0.12549]
[1731487160150,16.9279,206.76,206.62,0.12549]
[1731487160348,4.8367,206.75,206.64,0.12549]
[1731487160655,14.03192528,206.71,206.64,0.12549]
[1731487161241,14.03192528,206.71,206.64,312.12549]
[1731487162060,14.03192528,206.73,206.65,14.03192528]
[1731487162267,14.03192528,206.75,206.68,0.12549]
[1731487162761,14.03192528,206.69,206.61,4.3558]
[1731487162950,14.03192528,206.67,206.6,15.0104]
[1731487164058,14.03192528,206.65,206.61,0.12549]
[1731487164641,14.03192528,206.65,206.6,0.12549]
[1731487164848,22.46312711,206.64,206.6,0.12549]
[1731487165257,22.46312711,206.64,206.59,10.8906]
[1731487165963,22.46312711,206.68,206.6,0.12549]
[1731487167358,22.46312711,206.68,206.62,0.12549]
[1731487167768,27.30152711,206.68,206.62,0.12549]
[1731487168956,27.30152711,206.68,206.62,312.12549]
[1731487169463,4.8369,206.74,206.66,0.12549]
[1731487169766,27.30002711,206.74,206.66,0.12549]
[1731487169955,22.46312711,206.72,206.66,0.12549]
[1731487170145,22.46312711,206.72,206.63,22.46312711]
[1731487170848,22.46312711,206.72,206.64,0.12549]
[1731487171072,22.46312711,206.74,206.66,0.12549]
[1731487172265,27.30012711,206.74,206.68,0.12549]
[1731487172463,27.30012711,206.74,206.68,312.12549]
[1731487173178,22.46312711,206.78,206.7,0.12549]
[1731487173863,22.46312711,206.78,206.72,0.12549]
[1731487174052,27.29882711,206.8,206.72,4.47899]
[1731487174246,22.46312711,206.8,206.74,0.12549]
[1731487174445,27.29822711,206.82,206.74,0.12549]
[1731487174663,4.8348,206.84,206.78,0.12549]
[1731487174866,22.46312711,206.8,206.75,15.1249]
[1731487175167,22.46312711,206.76,206.7,16.5031]
[1731487176066,4.8367,206.75,206.71,0.12549]
[1731487176457,22.46312711,206.74,206.71,0.12549]
[1731487176848,4.8358,206.79,206.71,0.12549]
[1731487177053,22.46312711,206.82,206.75,0.12549]
[1731487177767,22.46312711,206.8,206.73,0.12549]
[1731487177967,22.46312711,206.78,206.73,0.12549]
[1731487178160,16.9204,206.85,206.7,54.20552711]
[1731487178161,22.46312711,206.76,206.7,31.7424]
[1731487178562,22.46312711,206.76,206.71,0.12549]
[1731487180870,22.46312711,206.79,206.71,11.01029]
[1731487181172,22.46312711,206.79,206.73,0.12549]
[1731487181550,4.8346,206.84,206.71,15.2385]
[1731487181551,22.46312711,206.77,206.71,15.2385]
[1731487181752,22.46312711,206.75,206.7,16.5031]
[1731487182453,22.46312711,206.75,206.71,0.12549]
[1731487182669,22.46312711,206.73,206.71,0.12549]
[1731487182966,22.46312711,206.73,206.68,0.12549]
[1731487183760,22.46312711,206.8,206.65,15.1066]
[1731487183761,22.46312711,206.71,206.65,15.1066]
[1731487183973,22.46312711,206.71,206.65,327.1066]
[1731487184175,16.9253,206.79,206.65,15.1066]
[1731487184176,22.46312711,206.69,206.65,15.1066]
[1731487184872,27.30122711,206.69,206.65,15.1066]
[1731487185124,0.1,206.78,206.68,0.12549]
[1731487185125,4.836,206.78,206.68,0.12549]
[1731487185375,4.8357,206.8,206.74,0.12549]
[1731487187079,4.8357,206.8,206.74,312.12549]
[1731487187384,4.8357,206.8,206.73,0.12549]
[1731487187873,22.46312711,206.77,206.69,22.46312711]
[1731487188275,4.8357,206.8,206.7,0.12549]
[1731487188468,22.46312711,206.79,206.71,22.46312711]
[1731487188781,22.46312711,206.79,206.72,0.12549]
[1731487189359,4.836,206.78,206.72,0.12549]
[1731487190287,4.836,206.78,206.7,0.12549]
[1731487190770,4.836,206.78,206.67,26.81782711]
[1731487190771,22.46312711,206.77,206.67,26.81782711]
[1731487191075,22.46312711,206.75,206.67,22.46312711]
[1731487191275,22.46312711,206.75,206.68,0.12549]
[1731487191475,22.46312711,206.73,206.66,322.8869]
[1731487191676,22.46312711,206.73,206.67,0.12549]
[1731487192054,22.46312711,206.73,206.66,10.8869]
[1731487192479,22.46312711,206.73,206.67,0.12549]
[1731487192677,4.8374,206.72,206.67,0.12549]
[1731487193077,22.46312711,206.71,206.65,15.1066]
[1731487193678,22.46312711,206.69,206.65,15.1066]
[1731487194064,22.46312711,206.67,206.61,22.1154]
[1731487194380,16.931,206.72,206.62,0.12549]
[1731487194381,22.46312711,206.69,206.62,0.12549]
[1731487194866,4.8383,206.68,206.62,0.12549]
[1731487197664,22.46312711,206.67,206.62,0.12549]
[1731487198080,22.46312711,206.65,206.61,16.0223]
[1731487198275,22.46312711,206.67,206.62,0.12549]
[1731487199178,27.30182711,206.67,206.62,0.12549]
[1731487199382,22.46312711,206.65,206.62,0.12549]
[1731487200379,22.46312711,206.63,206.56,6.3697]
[1731487200567,22.46312711,206.59,206.55,16.0986]
[1731487200762,22.46312711,206.59,206.55,20.4558]
[1731487200986,22.46312711,206.61,206.55,20.4558]
[1731487201467,22.46312711,206.59,206.55,16.0986]
[1731487201669,22.46312711,206.57,206.52,10.8947]
[1731487201876,22.46312711,206.57,206.53,0.12549]
[1731487202175,22.46312711,206.55,206.5,15.5639]
[1731487202365,4.8421,206.52,206.5,15.5639]
[1731487202583,22.46312711,206.51,206.46,6.5956]
[1731487202966,22.46312711,206.51,206.47,0.12549]
[1731487203185,4.8421,206.52,206.47,0.12549]
[1731487203487,22.46312711,206.51,206.47,0.12549]
[1731487203669,4.8421,206.52,206.43,10.8992]
[1731487203670,22.46312711,206.49,206.43,10.8992]
[1731487203868,22.46312711,206.51,206.43,33.36232711]
[1731487204278,4.843,206.48,206.41,26.82322711]
[1731487204479,22.46312711,206.47,206.41,4.3601]
[1731487204675,4.843,206.48,206.41,4.3601]
[1731487205099,4.843,206.48,206.42,0.12549]
[1731487205382,4.843,206.48,206.41,26.82322711]
[1731487205570,22.46312711,206.51,206.44,0.12549]
[1731487205771,27.30552711,206.51,206.44,0.12549]
[1731487206267,27.30512711,206.53,206.46,0.12549]
[1731487206468,22.46312711,206.53,206.48,0.12549]
[1731487206688,27.30472711,206.55,206.48,0.12549]
[1731487206988,22.46312711,206.53,206.46,0.12549]
[1731487207170,22.46312711,206.51,206.46,0.12549]
[1731487207572,22.46312711,206.49,206.41,37.72382711]
[1731487208085,22.46312711,206.51,206.44,0.12549]
[1731487208974,4.8416,206.54,206.44,0.12549]
[1731487209188,22.46312711,206.53,206.44,4.48499]
[1731487209773,22.46312711,206.51,206.44,0.12549]
[1731487210078,22.46312711,206.51,206.46,312.0]
[1731487210685,4.8426,206.5,206.46,312.0]
[1731487211388,22.46312711,206.53,206.46,312.0]
[1731487211584,27.30462711,206.55,206.47,22.58861711]
[1731487211793,4.8415,206.55,206.47,22.58861711]
[1731487211996,27.30462711,206.55,206.47,22.58861711]
[1731487212592,22.46312711,206.49,206.42,33.36312711]
[1731487212790,22.46312711,206.49,206.43,0.12549]
[1731487213595,27.30602711,206.49,206.43,0.12549]
[1731487213979,27.30602711,206.49,206.42,15.26]
[1731487214187,22.46312711,206.51,206.42,37.72312711]
[1731487214388,22.46312711,206.49,206.43,0.12549]
[1731487214581,22.46312711,206.49,206.43,312.12549]
[1731487214785,14.06164047,206.48,206.43,312.12549]
[1731487215396,14.06164047,206.48,206.43,312.0]
[1731487216271,14.06164047,206.5,206.43,312.0]
[1731487217499,14.06164047,206.44,206.39,15.5639]
[1731487218873,4.8439,206.45,206.39,15.5639]
[1731487219079,14.06164047,206.5,206.42,14.06164047]
[1731487219292,4.8421,206.52,206.4,0.12549]
[1731487219293,18.90374047,206.52,206.45,0.12549]
[1731487219800,14.06164047,206.5,206.43,0.12549]
[1731487220500,14.06164047,206.48,206.43,0.12549]
[1731487220890,22.4998431,206.44,206.37,4.361]
[1731487221199,22.4998431,206.42,206.35,22.9051894]
[1731487221572,22.4998431,206.46,206.38,22.4998431]
[1731487221895,22.4998431,206.48,206.4,22.4998431]
[1731487222102,22.4998431,206.48,206.41,0.12549]
[1731487222579,4.8433,206.47,206.41,0.12549]
[1731487224596,22.4998431,206.48,206.41,15.38619]
[1731487224891,4.8429,206.49,206.43,0.12549]
[1731487225304,4.8425,206.51,206.45,0.12549]
[1731487226103,22.4998431,206.56,206.49,0.12549]
[1731487226483,27.3411431,206.56,206.49,4.48399]
[1731487226797,27.3411431,206.56,206.49,0.12549]
[1731487227983,27.3416431,206.54,206.48,0.12549]
[1731487228801,27.3416431,206.54,206.46,43.3395431]
[1731487228802,22.4998431,206.52,206.46,16.4806]